[Event "Titled Tuesday Blitz August 17 2021"]
[White "Tikhonov, Viacheslav"]
[Black "Karttunen, Mika"]
[WhiteFideId "44196407"]
[BlackFideId "502081"]
[WhiteElo "1773"]
[BlackElo "2343"]
[Result "0-1"]
[Round "08"]
[TimeControl "180+1"]
[Date "2021.08.17"]
[WhiteClock "0:00:02"]
[BlackClock "0:00:08"]

1. e4 {[%clk 0:03:00]}  c5 {[%clk 0:02:59]} 2. Nf3 {[%clk 0:02:59]}  e6 {[%clk 0:02:57]} 3. b3 {[%clk 0:02:59]}  Nf6 {[%clk 0:02:53]} 4. e5 {[%clk 0:02:59]}  Nd5 {[%clk 0:02:52]} 5. Bb2 {[%clk 0:02:59]}  Be7 {[%clk 0:02:48]} 6. g3 {[%clk 0:02:57]}  O-O {[%clk 0:02:46]} 7. Bg2 {[%clk 0:02:57]}  f5 {[%clk 0:02:39]} 8. O-O {[%clk 0:02:47]}  Nc6 {[%clk 0:02:36]} 9. c4 {[%clk 0:02:43]}  Nc7 {[%clk 0:02:18]} 10. d4 {[%clk 0:02:27]}  cxd4 {[%clk 0:02:15]} 11. Nxd4 {[%clk 0:02:28]}  Rb8 {[%clk 0:01:26]} 12. Nb5 {[%clk 0:02:15]}  a6 {[%clk 0:01:11]} 13. Nd6 {[%clk 0:02:09]}  Bxd6 {[%clk 0:00:54]} 14. Qxd6 {[%clk 0:02:05]}  Ne8 {[%clk 0:00:54]} 15. Qd3 {[%clk 0:01:57]}  Qc7 {[%clk 0:00:54]} 16. f4 {[%clk 0:01:53]}  b5 {[%clk 0:00:54]} 17. c5 {[%clk 0:01:46]}  Bb7 {[%clk 0:00:50]} 18. a3 {[%clk 0:01:41]}  Ne7 {[%clk 0:00:43]} 19. Bxb7 {[%clk 0:01:28]}  Rxb7 {[%clk 0:00:40]} 20. Bd4 {[%clk 0:01:13]}  Qc6 {[%clk 0:00:38]} 21. Nd2 {[%clk 0:01:05]}  Nc7 {[%clk 0:00:37]} 22. b4 {[%clk 0:00:55]}  Qd5 {[%clk 0:00:30]} 23. Nb3 {[%clk 0:00:50]}  Nc6 {[%clk 0:00:30]} 24. Rfd1 {[%clk 0:00:47]}  Qc4 {[%clk 0:00:27]} 25. Qxc4 {[%clk 0:00:41]}  bxc4 {[%clk 0:00:27]} 26. Nc1 {[%clk 0:00:37]}  a5 {[%clk 0:00:23]} 27. Bc3 {[%clk 0:00:29]}  Nd5 {[%clk 0:00:24]} 28. Ne2 {[%clk 0:00:24]}  axb4 {[%clk 0:00:22]} 29. axb4 {[%clk 0:00:22]}  Rfb8 {[%clk 0:00:18]} 30. Rab1 {[%clk 0:00:12]}  Kf7 {[%clk 0:00:18]} 31. Kf2 {[%clk 0:00:11]}  Ncxb4 {[%clk 0:00:16]} 32. Bxb4 {[%clk 0:00:10]}  Rxb4 {[%clk 0:00:17]} 33. Rxb4 {[%clk 0:00:09]}  Rxb4 {[%clk 0:00:17]} 34. Ra1 {[%clk 0:00:07]}  Ke7 {[%clk 0:00:15]} 35. Ra7 {[%clk 0:00:05]}  Kd8 {[%clk 0:00:14]} 36. c6 {[%clk 0:00:04]}  dxc6 {[%clk 0:00:14]} 37. Rxg7 {[%clk 0:00:05]}  Rb2 {[%clk 0:00:13]} 38. Ke1 {[%clk 0:00:05]}  c3 {[%clk 0:00:13]} 39. Nd4 {[%clk 0:00:04]}  Rb1+ {[%clk 0:00:13]} 40. Ke2 {[%clk 0:00:04]}  Nb4 {[%clk 0:00:13]} 41. Rxh7 {[%clk 0:00:02]}  c2 {[%clk 0:00:13]} 42. Nxc2 {[%clk 0:00:03]}  Nxc2 {[%clk 0:00:13]} 43. h3 {[%clk 0:00:02]}  Nd4+ {[%clk 0:00:13]} 44. Kd3 {[%clk 0:00:02]}  c5 {[%clk 0:00:13]} 45. Kc4 {[%clk 0:00:02]}  Rc1+ {[%clk 0:00:13]} 46. Kd3 {[%clk 0:00:02]}  Nc6 {[%clk 0:00:12]} 47. g4 {[%clk 0:00:02]}  fxg4 {[%clk 0:00:12]} 48. hxg4 {[%clk 0:00:03]}  Rg1 {[%clk 0:00:13]} 49. f5 {[%clk 0:00:03]}  Rxg4 {[%clk 0:00:09]} 50. fxe6 {[%clk 0:00:02]}  Nxe5+ {[%clk 0:00:09]} 51. Kc3 {[%clk 0:00:03]}  Rg3+ {[%clk 0:00:08]} 52. Kc2 {[%clk 0:00:02]}  Rg6 {[%clk 0:00:08]} 53. Ra7 {[%clk 0:00:02]}  Rxe6 {[%clk 0:00:08]} 54. Kc3 {[%clk 0:00:03]}  Rc6 {[%clk 0:00:08]} 55. Ra8+ {[%clk 0:00:03]}  Kd7 {[%clk 0:00:08]} 56. Rh8 {[%clk 0:00:04]}  Kd6 {[%clk 0:00:09]} 57. Rh6+ {[%clk 0:00:04]}  Kd5 {[%clk 0:00:09]} 58. Rh1 {[%clk 0:00:03]}  Ra6 {[%clk 0:00:09]} 59. Rd1+ {[%clk 0:00:04]}  Kc6 {[%clk 0:00:10]} 60. Rh1 {[%clk 0:00:04]}  Ra3+ {[%clk 0:00:10]} 61. Kb2 {[%clk 0:00:04]}  Rf3 {[%clk 0:00:10]} 62. Rh8 {[%clk 0:00:04]}  Kd5 {[%clk 0:00:11]} 63. Rd8+ {[%clk 0:00:04]}  Kc4 {[%clk 0:00:11]} 64. Rh8 {[%clk 0:00:04]}  Nc6 {[%clk 0:00:11]} 65. Ra8 {[%clk 0:00:03]}  Nb4 {[%clk 0:00:11]} 66. Rh8 {[%clk 0:00:02]}  Rf2+ {[%clk 0:00:12]} 67. Kc1 {[%clk 0:00:03]}  Kc3 {[%clk 0:00:11]} 68. Rh4 {[%clk 0:00:03]}  Nd3+ {[%clk 0:00:10]} 69. Kb1 {[%clk 0:00:03]}  Rb2+ {[%clk 0:00:10]} 70. Ka1 {[%clk 0:00:03]}  Rb4 {[%clk 0:00:10]} 71. Rh1 {[%clk 0:00:02]}  c4 {[%clk 0:00:10]} 72. Rc1+ {[%clk 0:00:01]}  Kd4 {[%clk 0:00:09]} 73. Rc2 {[%clk 0:00:02]}  Rb8 {[%clk 0:00:09]} 74. Rc1 {[%clk 0:00:01]}  c3 {[%clk 0:00:09]} 75. Rc2 {[%clk 0:00:01]}  Ra8+ {[%clk 0:00:09]} 76. Kb1 {[%clk 0:00:02]}  Rc8 {[%clk 0:00:07]} 77. Rh2 {[%clk 0:00:02]}  Re8 {[%clk 0:00:07]} 78. Rh4+ {[%clk 0:00:02]}  Re4 {[%clk 0:00:06]} 79. Rh1 {[%clk 0:00:02]}  Re1+ {[%clk 0:00:06]} 80. Rxe1 {[%clk 0:00:01]}  Nxe1 {[%clk 0:00:06]} 81. Kc1 {[%clk 0:00:01]}  Kd3 {[%clk 0:00:06]} 82. Kd1 {[%clk 0:00:01]}  Nf3 {[%clk 0:00:07]} 83. Kc1 {[%clk 0:00:02]}  Nd4 {[%clk 0:00:07]} 84. Kb1 {[%clk 0:00:02]}  Ne2 {[%clk 0:00:07]} 85. Ka1 {[%clk 0:00:02]}  c2 {[%clk 0:00:08]} 86. Ka2 {[%clk 0:00:02]}  c1=Q {[%clk 0:00:08]} 87. Kb3 {[%clk 0:00:03]}  Qc3+ {[%clk 0:00:08]} 88. Ka2 {[%clk 0:00:02]}  Qb4 {[%clk 0:00:08]} 0-1


[Site "https://www.chess.com"]

[Event "Titled Tuesday Blitz August 17 2021"]
[White "Timofeev, Artyom"]
[Black "Nogerbek, Kazybek"]
[WhiteFideId "4140419"]
[BlackFideId "13710427"]
[WhiteElo "2582"]
[BlackElo "2436"]
[Result "1/2-1/2"]
[Round "08"]
[TimeControl "180+1"]
[Date "2021.08.17"]
[WhiteClock "0:00:37"]
[BlackClock "0:00:07"]

1. c4 {[%clk 0:03:00]}  e5 {[%clk 0:02:57]} 2. e3 {[%clk 0:03:00]}  g6 {[%clk 0:02:54]} 3. Nc3 {[%clk 0:03:00]}  Bg7 {[%clk 0:02:54]} 4. Nf3 {[%clk 0:02:59]}  Ne7 {[%clk 0:02:55]} 5. Be2 {[%clk 0:02:58]}  O-O {[%clk 0:02:55]} 6. O-O {[%clk 0:02:57]}  Nbc6 {[%clk 0:02:56]} 7. b3 {[%clk 0:02:56]}  e4 {[%clk 0:02:47]} 8. Ne1 {[%clk 0:02:53]}  d5 {[%clk 0:02:46]} 9. cxd5 {[%clk 0:02:52]}  Nxd5 {[%clk 0:02:47]} 10. Bb2 {[%clk 0:02:52]}  Nxc3 {[%clk 0:02:32]} 11. Bxc3 {[%clk 0:02:52]}  Bxc3 {[%clk 0:02:09]} 12. dxc3 {[%clk 0:02:51]}  Qxd1 {[%clk 0:02:10]} 13. Rxd1 {[%clk 0:02:51]}  Be6 {[%clk 0:02:11]} 14. Nc2 {[%clk 0:02:50]}  Rfd8 {[%clk 0:02:12]} 15. Nd4 {[%clk 0:02:44]}  Nxd4 {[%clk 0:02:11]} 16. exd4 {[%clk 0:02:44]}  Rd6 {[%clk 0:02:04]} 17. f3 {[%clk 0:02:43]}  exf3 {[%clk 0:02:00]} 18. Bxf3 {[%clk 0:02:42]}  c6 {[%clk 0:02:01]} 19. Kf2 {[%clk 0:02:42]}  Rad8 {[%clk 0:02:00]} 20. Rfe1 {[%clk 0:02:40]}  Kg7 {[%clk 0:01:52]} 21. Re5 {[%clk 0:02:38]}  b6 {[%clk 0:01:44]} 22. Rde1 {[%clk 0:02:33]}  h5 {[%clk 0:01:35]} 23. h4 {[%clk 0:02:33]}  Kf6 {[%clk 0:01:35]} 24. Kg3 {[%clk 0:02:33]}  Rc8 {[%clk 0:01:27]} 25. Kf4 {[%clk 0:02:24]}  a5 {[%clk 0:01:18]} 26. R5e3 {[%clk 0:02:03]}  c5 {[%clk 0:01:02]} 27. dxc5 {[%clk 0:02:03]}  Rxc5 {[%clk 0:01:02]} 28. c4 {[%clk 0:01:53]}  b5 {[%clk 0:00:58]} 29. cxb5 {[%clk 0:01:52]}  Rxb5 {[%clk 0:00:59]} 30. Re4 {[%clk 0:01:50]}  Rd2 {[%clk 0:00:49]} 31. R1e2 {[%clk 0:01:47]}  Rxe2 {[%clk 0:00:38]} 32. Rxe2 {[%clk 0:01:47]}  Rc5 {[%clk 0:00:22]} 33. Rd2 {[%clk 0:01:43]}  a4 {[%clk 0:00:19]} 34. Bd1 {[%clk 0:01:42]}  axb3 {[%clk 0:00:19]} 35. Bxb3 {[%clk 0:01:42]}  Ra5 {[%clk 0:00:13]} 36. Rd6 {[%clk 0:01:38]}  Ke7 {[%clk 0:00:12]} 37. Rb6 {[%clk 0:01:38]}  Bxb3 {[%clk 0:00:10]} 38. axb3 {[%clk 0:01:37]}  Ra2 {[%clk 0:00:11]} 39. g3 {[%clk 0:01:36]}  Rf2+ {[%clk 0:00:11]} 40. Ke3 {[%clk 0:01:36]}  Rg2 {[%clk 0:00:12]} 41. Kf3 {[%clk 0:01:36]}  Rb2 {[%clk 0:00:13]} 42. b4 {[%clk 0:01:37]}  Rb3+ {[%clk 0:00:12]} 43. Kf4 {[%clk 0:01:37]}  Rb2 {[%clk 0:00:13]} 44. Rb7+ {[%clk 0:01:37]}  Kf6 {[%clk 0:00:13]} 45. Rb6+ {[%clk 0:01:32]}  Ke7 {[%clk 0:00:14]} 46. b5 {[%clk 0:01:32]}  Rb3 {[%clk 0:00:12]} 47. Rb7+ {[%clk 0:01:31]}  Kf6 {[%clk 0:00:13]} 48. Rb6+ {[%clk 0:01:27]}  Ke7 {[%clk 0:00:13]} 49. Rb8 {[%clk 0:01:26]}  Kf6 {[%clk 0:00:14]} 50. b6 {[%clk 0:01:25]}  Rb4+ {[%clk 0:00:14]} 51. Kf3 {[%clk 0:01:25]}  Kf5 {[%clk 0:00:15]} 52. b7 {[%clk 0:01:05]}  f6 {[%clk 0:00:15]} 53. Ke3 {[%clk 0:00:56]}  Rb1 {[%clk 0:00:10]} 54. Kd4 {[%clk 0:00:53]}  Kg4 {[%clk 0:00:10]} 55. Rg8 {[%clk 0:00:52]}  Rxb7 {[%clk 0:00:10]} 56. Rxg6+ {[%clk 0:00:53]}  Kf5 {[%clk 0:00:10]} 57. Rh6 {[%clk 0:00:51]}  Kg4 {[%clk 0:00:09]} 58. Rg6+ {[%clk 0:00:51]}  Kf3 {[%clk 0:00:08]} 59. Rxf6+ {[%clk 0:00:46]}  Kxg3 {[%clk 0:00:08]} 60. Rf5 {[%clk 0:00:40]}  Kg4 {[%clk 0:00:08]} 61. Re5 {[%clk 0:00:38]}  Rb3 {[%clk 0:00:05]} 62. Re3 {[%clk 0:00:36]}  Rb4+ {[%clk 0:00:04]} 63. Kd3 {[%clk 0:00:36]}  Kxh4 {[%clk 0:00:03]} 64. Ke2 {[%clk 0:00:37]}  Rb2+ {[%clk 0:00:03]} 65. Kf1 {[%clk 0:00:37]}  Rb4 {[%clk 0:00:04]} 66. Kg1 {[%clk 0:00:37]}  Rg4+ {[%clk 0:00:05]} 67. Kh1 {[%clk 0:00:37]}  Kg5 {[%clk 0:00:06]} 68. Kh2 {[%clk 0:00:37]}  Rh4+ {[%clk 0:00:06]} 69. Rh3 {[%clk 0:00:37]}  Rg4 {[%clk 0:00:07]} 1/2-1/2


[Site "https://www.chess.com"]

[Event "Titled Tuesday Blitz August 17 2021"]
[White "Wagner, Dennis"]
[Black "Makhnev, Denis"]
[WhiteFideId "24650684"]
[BlackFideId "13707647"]
[WhiteElo "2355"]
[BlackElo "2537"]
[Result "1-0"]
[Round "08"]
[TimeControl "180+1"]
[Date "2021.08.17"]
[WhiteClock "0:00:06"]
[BlackClock "0:00:02"]

1. d4 {[%clk 0:03:00]}  Nf6 {[%clk 0:03:00]} 2. c4 {[%clk 0:03:01]}  e6 {[%clk 0:03:00]} 3. Nf3 {[%clk 0:03:02]}  b6 {[%clk 0:02:59]} 4. a3 {[%clk 0:03:02]}  Ba6 {[%clk 0:02:58]} 5. Qc2 {[%clk 0:03:02]}  c5 {[%clk 0:02:58]} 6. d5 {[%clk 0:02:56]}  exd5 {[%clk 0:02:59]} 7. cxd5 {[%clk 0:02:57]}  g6 {[%clk 0:03:00]} 8. Nc3 {[%clk 0:02:56]}  Bg7 {[%clk 0:03:00]} 9. e4 {[%clk 0:02:53]}  Bxf1 {[%clk 0:03:00]} 10. Kxf1 {[%clk 0:02:53]}  d6 {[%clk 0:03:00]} 11. h4 {[%clk 0:02:52]}  O-O {[%clk 0:03:00]} 12. h5 {[%clk 0:02:52]}  a6 {[%clk 0:02:53]} 13. h6 {[%clk 0:02:47]}  Bh8 {[%clk 0:02:53]} 14. Bf4 {[%clk 0:02:47]}  Re8 {[%clk 0:02:52]} 15. a4 {[%clk 0:02:36]}  Ng4 {[%clk 0:02:49]} 16. g3 {[%clk 0:02:29]}  Qe7 {[%clk 0:02:28]} 17. Kg2 {[%clk 0:02:23]}  Nd7 {[%clk 0:02:28]} 18. Rae1 {[%clk 0:02:22]}  Rab8 {[%clk 0:02:23]} 19. Qe2 {[%clk 0:02:14]}  b5 {[%clk 0:02:07]} 20. axb5 {[%clk 0:02:13]}  axb5 {[%clk 0:02:08]} 21. Nxb5 {[%clk 0:02:13]}  Nde5 {[%clk 0:02:08]} 22. Nxe5 {[%clk 0:02:09]}  Nxe5 {[%clk 0:02:05]} 23. Ra1 {[%clk 0:01:41]}  Qd7 {[%clk 0:01:29]} 24. Ra5 {[%clk 0:01:41]}  Rb6 {[%clk 0:01:29]} 25. Rha1 {[%clk 0:01:29]}  Reb8 {[%clk 0:01:29]} 26. Nc3 {[%clk 0:01:17]}  Qe8 {[%clk 0:01:26]} 27. R1a2 {[%clk 0:01:14]}  Bf6 {[%clk 0:00:46]} 28. Ra7 {[%clk 0:01:13]}  g5 {[%clk 0:00:44]} 29. Bc1 {[%clk 0:01:13]}  Ng6 {[%clk 0:00:43]} 30. Qf3 {[%clk 0:01:05]}  Bd4 {[%clk 0:00:40]} 31. Ne2 {[%clk 0:00:45]}  Rb3 {[%clk 0:00:35]} 32. Qf5 {[%clk 0:00:36]}  Bh8 {[%clk 0:00:16]} 33. Bxg5 {[%clk 0:00:33]}  R3b4 {[%clk 0:00:16]} 34. Nc3 {[%clk 0:00:16]}  Rxb2 {[%clk 0:00:08]} 35. Rxb2 {[%clk 0:00:15]}  Rxb2 {[%clk 0:00:09]} 36. Bf6 {[%clk 0:00:15]}  Rb8 {[%clk 0:00:03]} 37. Bxh8 {[%clk 0:00:15]}  Nxh8 {[%clk 0:00:04]} 38. Qg5+ {[%clk 0:00:12]}  Ng6 {[%clk 0:00:04]} 39. Qf6 {[%clk 0:00:12]}  Qf8 {[%clk 0:00:04]} 40. e5 {[%clk 0:00:07]}  Nxe5 {[%clk 0:00:04]} 41. Ne4 {[%clk 0:00:07]}  Ng6 {[%clk 0:00:03]} 42. Ng5 {[%clk 0:00:07]}  Ne5 {[%clk 0:00:02]} 43. Ne6 {[%clk 0:00:06]} 1-0


[Site "https://www.chess.com"]

[Event "Titled Tuesday Blitz August 17 2021"]
[White "Woodward, Andy"]
[Black "davigator"]
[WhiteFideId "30953499"]
[WhiteElo "2137"]
[BlackElo "2358"]
[Result "1-0"]
[Round "08"]
[TimeControl "180+1"]
[Date "2021.08.18"]
[WhiteClock "0:00:04"]
[BlackClock "0:00:15"]

1. d4 {[%clk 0:03:00]}  Nf6 {[%clk 0:02:58]} 2. c4 {[%clk 0:03:01]}  e6 {[%clk 0:02:58]} 3. Nc3 {[%clk 0:03:00]}  Bb4 {[%clk 0:02:58]} 4. Qc2 {[%clk 0:03:00]}  c5 {[%clk 0:02:57]} 5. dxc5 {[%clk 0:03:00]}  Nc6 {[%clk 0:02:57]} 6. Nf3 {[%clk 0:02:59]}  h6 {[%clk 0:02:58]} 7. g3 {[%clk 0:02:58]}  Bxc5 {[%clk 0:02:56]} 8. Bg2 {[%clk 0:02:58]}  O-O {[%clk 0:02:56]} 9. O-O {[%clk 0:02:58]}  a6 {[%clk 0:02:49]} 10. b3 {[%clk 0:02:55]}  Qe7 {[%clk 0:02:49]} 11. a3 {[%clk 0:02:54]}  Rd8 {[%clk 0:02:40]} 12. Bb2 {[%clk 0:02:53]}  d5 {[%clk 0:02:38]} 13. cxd5 {[%clk 0:02:53]}  Nxd5 {[%clk 0:02:37]} 14. Rad1 {[%clk 0:02:50]}  Ba7 {[%clk 0:02:32]} 15. Nxd5 {[%clk 0:02:41]}  exd5 {[%clk 0:02:31]} 16. Nd4 {[%clk 0:02:40]}  Nxd4 {[%clk 0:02:29]} 17. Bxd4 {[%clk 0:02:41]}  Bxd4 {[%clk 0:02:27]} 18. Rxd4 {[%clk 0:02:42]}  Be6 {[%clk 0:02:27]} 19. b4 {[%clk 0:02:30]}  a5 {[%clk 0:02:26]} 20. Qd2 {[%clk 0:02:30]}  axb4 {[%clk 0:02:26]} 21. axb4 {[%clk 0:02:31]}  Ra4 {[%clk 0:02:22]} 22. Rd1 {[%clk 0:02:30]}  Rda8 {[%clk 0:02:12]} 23. h4 {[%clk 0:02:16]}  Ra2 {[%clk 0:02:11]} 24. Qe3 {[%clk 0:02:15]}  Qd6 {[%clk 0:02:03]} 25. Kh2 {[%clk 0:02:02]}  Rb2 {[%clk 0:02:00]} 26. Bxd5 {[%clk 0:01:30]}  Bxd5 {[%clk 0:01:59]} 27. Rxd5 {[%clk 0:01:31]}  Qxb4 {[%clk 0:01:58]} 28. Rd8+ {[%clk 0:01:31]}  Rxd8 {[%clk 0:01:56]} 29. Rxd8+ {[%clk 0:01:32]}  Kh7 {[%clk 0:01:57]} 30. Qd3+ {[%clk 0:01:27]}  g6 {[%clk 0:01:57]} 31. Rd7 {[%clk 0:01:24]}  Qb3 {[%clk 0:01:43]} 32. Qxb3 {[%clk 0:00:37]}  Rxb3 {[%clk 0:01:43]} 33. Rxf7+ {[%clk 0:00:38]}  Kg8 {[%clk 0:01:43]} 34. Rc7 {[%clk 0:00:39]}  Rb2 {[%clk 0:01:41]} 35. Re7 {[%clk 0:00:29]}  b5 {[%clk 0:01:39]} 36. Kg2 {[%clk 0:00:27]}  b4 {[%clk 0:01:40]} 37. e3 {[%clk 0:00:24]}  b3 {[%clk 0:01:40]} 38. Rb7 {[%clk 0:00:24]}  Kf8 {[%clk 0:01:36]} 39. g4 {[%clk 0:00:21]}  Kg8 {[%clk 0:01:33]} 40. Kg3 {[%clk 0:00:20]}  Kf8 {[%clk 0:01:33]} 41. f3 {[%clk 0:00:20]}  Rb1 {[%clk 0:01:32]} 42. Kf4 {[%clk 0:00:20]}  Kg8 {[%clk 0:01:30]} 43. e4 {[%clk 0:00:18]}  b2 {[%clk 0:01:27]} 44. h5 {[%clk 0:00:15]}  gxh5 {[%clk 0:01:24]} 45. gxh5 {[%clk 0:00:14]}  Kh8 {[%clk 0:01:22]} 46. Kf5 {[%clk 0:00:13]}  Kg8 {[%clk 0:01:21]} 47. f4 {[%clk 0:00:13]}  Kh8 {[%clk 0:01:18]} 48. e5 {[%clk 0:00:13]}  Kg8 {[%clk 0:01:18]} 49. e6 {[%clk 0:00:12]}  Kh8 {[%clk 0:01:13]} 50. Kf6 {[%clk 0:00:07]}  Rf1 {[%clk 0:01:12]} 51. Rxb2 {[%clk 0:00:05]}  Rxf4+ {[%clk 0:01:13]} 52. Ke7 {[%clk 0:00:04]}  Kg7 {[%clk 0:01:09]} 53. Rg2+ {[%clk 0:00:04]}  Kh7 {[%clk 0:01:09]} 54. Rg6 {[%clk 0:00:04]}  Ra4 {[%clk 0:01:08]} 55. Kf8 {[%clk 0:00:02]}  Ra8+ {[%clk 0:01:07]} 56. Kf7 {[%clk 0:00:02]}  Ra1 {[%clk 0:00:59]} 57. e7 {[%clk 0:00:02]}  Rf1+ {[%clk 0:00:58]} 58. Rf6 {[%clk 0:00:02]}  Rg1 {[%clk 0:00:32]} 59. e8=Q {[%clk 0:00:03]}  Rg5 {[%clk 0:00:26]} 60. Ke6 {[%clk 0:00:02]}  Rg7 {[%clk 0:00:19]} 61. Qg6+ {[%clk 0:00:02]}  Kg8 {[%clk 0:00:14]} 62. Qxg7+ {[%clk 0:00:01]}  Kxg7 {[%clk 0:00:15]} 63. Rg6+ {[%clk 0:00:02]}  Kh7 {[%clk 0:00:15]} 64. Kf7 {[%clk 0:00:03]}  Kh8 {[%clk 0:00:15]} 65. Rxh6# {[%clk 0:00:04]} 1-0


[Site "https://www.chess.com"]

[Event "Titled Tuesday Blitz August 17 2021"]
[White "Yeletsky, Ivan"]
[Black "Goryachkina, Aleksandra"]
[WhiteFideId "24180327"]
[BlackFideId "4147103"]
[WhiteElo "2344"]
[BlackElo "2441"]
[Result "1-0"]
[Round "08"]
[TimeControl "180+1"]
[Date "2021.08.17"]
[WhiteClock "0:00:31"]
[BlackClock "0:00:05"]

1. d4 {[%clk 0:03:00]}  Nf6 {[%clk 0:02:59]} 2. c4 {[%clk 0:03:00]}  e6 {[%clk 0:03:00]} 3. Nf3 {[%clk 0:02:55]}  d5 {[%clk 0:02:59]} 4. g3 {[%clk 0:02:55]}  Bb4+ {[%clk 0:02:50]} 5. Bd2 {[%clk 0:02:54]}  Bd6 {[%clk 0:02:49]} 6. Nc3 {[%clk 0:02:53]}  O-O {[%clk 0:02:49]} 7. Bg2 {[%clk 0:02:48]}  c6 {[%clk 0:02:48]} 8. O-O {[%clk 0:02:46]}  Nbd7 {[%clk 0:02:47]} 9. b3 {[%clk 0:02:46]}  h6 {[%clk 0:02:42]} 10. Qc2 {[%clk 0:02:46]}  Re8 {[%clk 0:02:36]} 11. Rfd1 {[%clk 0:02:41]}  Qe7 {[%clk 0:02:21]} 12. Rab1 {[%clk 0:02:34]}  dxc4 {[%clk 0:02:16]} 13. bxc4 {[%clk 0:02:34]}  e5 {[%clk 0:02:15]} 14. e3 {[%clk 0:02:33]}  exd4 {[%clk 0:02:10]} 15. exd4 {[%clk 0:02:32]}  Nf8 {[%clk 0:02:09]} 16. Re1 {[%clk 0:02:27]}  Qd8 {[%clk 0:02:09]} 17. a4 {[%clk 0:02:22]}  Rxe1+ {[%clk 0:02:03]} 18. Rxe1 {[%clk 0:02:17]}  Be6 {[%clk 0:02:02]} 19. Qd3 {[%clk 0:02:13]}  c5 {[%clk 0:01:45]} 20. d5 {[%clk 0:02:10]}  Bg4 {[%clk 0:01:43]} 21. Nh4 {[%clk 0:02:09]}  Qd7 {[%clk 0:01:40]} 22. a5 {[%clk 0:02:06]}  Re8 {[%clk 0:01:37]} 23. Rxe8 {[%clk 0:02:04]}  Qxe8 {[%clk 0:01:36]} 24. Ne4 {[%clk 0:02:04]}  Nxe4 {[%clk 0:01:34]} 25. Bxe4 {[%clk 0:02:05]}  Nd7 {[%clk 0:01:20]} 26. Bh7+ {[%clk 0:02:05]}  Kf8 {[%clk 0:01:17]} 27. Bf5 {[%clk 0:02:05]}  Nf6 {[%clk 0:01:02]} 28. Bxg4 {[%clk 0:01:59]}  Nxg4 {[%clk 0:01:01]} 29. Nf5 {[%clk 0:01:57]}  Be5 {[%clk 0:00:51]} 30. h3 {[%clk 0:01:55]}  Nf6 {[%clk 0:00:50]} 31. Be3 {[%clk 0:01:54]}  b6 {[%clk 0:00:49]} 32. Qb3 {[%clk 0:01:50]}  Qd7 {[%clk 0:00:43]} 33. axb6 {[%clk 0:01:46]}  axb6 {[%clk 0:00:41]} 34. Qxb6 {[%clk 0:01:46]}  Kg8 {[%clk 0:00:29]} 35. g4 {[%clk 0:01:46]}  h5 {[%clk 0:00:23]} 36. f3 {[%clk 0:01:46]}  hxg4 {[%clk 0:00:22]} 37. hxg4 {[%clk 0:01:46]}  Qa4 {[%clk 0:00:18]} 38. Ne7+ {[%clk 0:01:13]}  Kh7 {[%clk 0:00:17]} 39. Qb1+ {[%clk 0:01:13]}  g6 {[%clk 0:00:16]} 40. Qf1 {[%clk 0:01:10]}  Kg7 {[%clk 0:00:13]} 41. Nc6 {[%clk 0:01:09]}  Bd6 {[%clk 0:00:11]} 42. Qe2 {[%clk 0:01:03]}  Qa1+ {[%clk 0:00:10]} 43. Kg2 {[%clk 0:01:03]}  Nd7 {[%clk 0:00:08]} 44. Bd2 {[%clk 0:01:01]}  Ne5 {[%clk 0:00:06]} 45. Nxe5 {[%clk 0:01:01]}  Bxe5 {[%clk 0:00:06]} 46. Qd3 {[%clk 0:00:58]}  Bd4 {[%clk 0:00:06]} 47. Be3 {[%clk 0:00:55]}  Qb2+ {[%clk 0:00:07]} 48. Qd2 {[%clk 0:00:55]}  Qa1 {[%clk 0:00:05]} 49. Bxd4+ {[%clk 0:00:55]}  cxd4 {[%clk 0:00:05]} 50. c5 {[%clk 0:00:53]}  Qc3 {[%clk 0:00:05]} 51. Qf4 {[%clk 0:00:43]}  Qxc5 {[%clk 0:00:05]} 52. Qe5+ {[%clk 0:00:43]}  Kf8 {[%clk 0:00:05]} 53. Qb8+ {[%clk 0:00:37]}  Kg7 {[%clk 0:00:05]} 54. d6 {[%clk 0:00:37]}  d3 {[%clk 0:00:05]} 55. d7 {[%clk 0:00:32]}  Qc2+ {[%clk 0:00:04]} 56. Kg3 {[%clk 0:00:32]}  Qc3 {[%clk 0:00:04]} 57. d8=Q {[%clk 0:00:32]}  Qe1+ {[%clk 0:00:05]} 58. Kf4 {[%clk 0:00:31]}  Qd2+ {[%clk 0:00:05]} 59. Ke4 {[%clk 0:00:31]}  Qe2+ {[%clk 0:00:05]} 60. Kd4 {[%clk 0:00:31]} 1-0


[Site "https://www.chess.com"]